bitfinex-derivatives/quotes_BNBF0:USTF0_20250630
["timestamp","ask_amount","ask_price","bid_price","bid_amount"]
[1751249276347,0.2657787,655.38,654.6,0.617]
[1751249276541,0.2657787,655.38,654.61,1.11477378]
[1751249276836,0.2657787,655.38,654.62,1.11477378]
[1751249277037,0.2657787,655.38,654.6,0.617]
[1751249277244,0.2657787,655.38,654.61,1.11486184]
[1751249277446,0.2657787,655.38,654.62,1.11486184]
[1751249277742,0.2657787,655.38,654.6,0.617]
[1751249277941,0.2657787,655.38,654.61,1.11486504]
[1751249278138,0.2657787,655.38,654.62,1.11486504]
[1751249278342,0.2657787,655.38,654.6,0.617]
[1751249278643,0.2657787,655.38,654.61,1.11499439]
[1751249278843,0.2657787,655.38,654.62,1.11499439]
[1751249279042,0.2657787,655.38,654.63,1.11499439]
[1751249279239,0.2657787,655.38,654.64,1.11499439]
[1751249279443,0.2657787,655.38,654.6,0.617]
[1751249279745,0.2657787,655.38,654.65,2.924]
[1751249280740,0.2657787,655.38,654.66,1.11500473]
[1751249280942,0.2657787,655.38,654.67,1.11466753]
[1751249281241,0.2657787,655.38,654.68,1.11466753]
[1751249281441,0.2657787,655.38,654.69,1.11466753]
[1751249281640,0.2657787,655.38,654.7,1.11466753]
[1751249281841,0.2657787,655.38,654.71,1.11466753]
[1751249282143,0.2657787,655.38,654.72,1.11466753]
[1751249282339,0.2657787,655.38,654.73,1.11466753]
[1751249282541,0.2657787,655.38,654.74,1.11466753]
[1751249282744,0.2657787,655.38,654.75,1.11466753]
[1751249283052,9.1446982,656.21,654.76,1.11466753]
[1751249283242,0.26558094,655.46,654.77,1.11466753]
[1751249283444,0.26558094,655.46,654.65,2.924]
[1751249283643,3.81029092,656.21,654.66,1.11445161]
[1751249283847,0.26559107,655.46,654.67,1.11445161]
[1751249284147,3.81029092,656.21,654.68,1.11445161]
[1751249284346,3.81029092,656.21,654.65,2.924]
[1751249284347,3.81029092,656.21,654.69,1.11445161]
[1751249284543,3.81029092,656.21,654.7,1.11445161]
[1751249284742,3.81029092,656.21,654.71,1.11445161]
[1751249284946,3.81029092,656.21,654.72,1.11445161]
[1751249285143,3.81029092,656.21,654.73,1.11445161]
[1751249285342,0.26558499,655.84,654.74,1.11445161]
[1751249285546,0.26558499,655.84,654.75,1.11445161]
[1751249285745,0.26558499,655.84,654.76,1.11445161]
[1751249286043,0.26558499,655.84,654.77,1.11445161]
[1751249286242,0.26558499,655.84,654.78,1.11445161]
[1751249286445,0.26558499,655.84,654.79,1.11445161]
[1751249286644,0.26558499,655.84,654.65,2.924]
[1751249286848,0.26558499,655.84,654.66,1.11443654]
[1751249287046,0.26558499,655.84,654.65,2.924]
[1751249287047,0.26558499,655.84,654.67,1.11443654]
[1751249287347,0.26558499,655.84,654.68,1.11443654]
[1751249287649,0.26558499,655.84,654.69,1.11443654]
[1751249287849,0.26558499,655.84,654.7,1.11443654]
[1751249288047,0.26558499,655.84,654.71,1.11443654]
[1751249288247,0.26558499,655.84,654.72,1.11443654]
[1751249288449,0.26558499,655.84,654.65,2.924]
[1751249288450,0.26558499,655.84,654.73,1.11443654]
[1751249288649,0.26558499,655.84,654.74,1.11443654]
[1751249288854,0.26558499,655.84,654.75,1.11443654]
[1751249289054,0.26558499,655.84,654.76,1.11443654]
[1751249289257,0.26558499,655.84,654.77,1.11443654]
[1751249289455,0.26558499,655.84,654.78,1.11443654]
[1751249289654,0.26558499,655.84,654.79,1.11443654]
[1751249289851,0.26558499,655.84,654.8,1.11443654]
[1751249290155,0.26558499,655.84,654.81,1.11454261]
[1751249290355,0.26558499,655.84,654.82,1.11454261]
[1751249290557,0.26558499,655.84,654.83,1.11454261]
[1751249290852,0.26558499,655.84,654.84,1.11454261]
[1751249291052,0.26558499,655.84,654.85,1.11454261]
[1751249291257,0.26558499,655.84,654.8,0.617]
[1751249301262,0.26558499,655.84,654.81,3.817]
[1751249313171,0.26558499,655.84,654.8,0.617]
[1751249315372,0.26558499,655.84,654.81,2.835]
[1751249316575,0.26558499,655.84,654.82,3.817]
[1751249320379,0.26558499,655.84,654.83,0.617]
[1751249332788,4.06367003,655.84,654.83,0.617]
[1751249333984,3.79808504,655.8,654.83,0.617]
[1751249334389,3.79808504,655.78,654.83,0.617]
[1751249334886,3.79808504,655.76,654.83,0.617]
[1751249335491,0.26558499,655.84,654.83,0.617]
[1751249335492,3.79808504,655.75,654.83,0.617]
[1751249335990,3.79808504,655.69,654.83,0.617]
[1751249336391,3.79808504,655.68,654.83,0.617]
[1751249337587,3.79808504,655.67,654.83,0.617]
[1751249338588,3.79808504,655.66,654.83,0.617]
[1751249338992,3.79808504,655.73,654.83,0.617]
[1751249339593,0.26558499,655.84,654.83,0.617]
[1751249339594,3.79808504,655.71,654.83,0.617]
[1751249341194,3.79808504,655.71,654.84,1.11881597]
[1751249341496,3.79808504,655.71,654.83,0.617]
[1751249341695,3.79808504,655.73,654.84,1.11882513]
[1751249341896,3.79808504,655.73,654.83,0.617]
[1751249342095,3.79808504,655.69,654.84,1.11882513]
[1751249342296,3.79808504,655.69,654.85,1.11882513]
[1751249342497,3.79808504,655.69,654.83,0.617]
[1751249342698,3.79808504,655.75,654.84,1.11889597]
[1751249342895,3.79808504,655.75,654.85,1.11889597]
[1751249343099,3.79808504,655.75,654.83,0.617]
[1751249343398,3.79808504,655.75,654.84,1.11893795]
[1751249343597,3.79808504,655.75,654.85,1.11893795]
[1751249343795,3.79808504,655.75,654.81,2.835]
[1751249343796,3.79808504,655.74,654.81,2.835]
[1751249343995,3.79808504,655.74,654.82,1.11893769]
[1751249344199,3.79808504,655.74,654.83,1.11893769]
[1751249344395,3.79808504,655.74,654.84,1.11893769]
[1751249344698,3.79808504,655.74,654.85,1.11893769]
[1751249344895,3.79808504,655.74,654.84,3.457]
[1751249345098,3.79808504,655.74,654.85,1.11895988]
[1751249345398,3.79808504,655.83,654.84,3.457]
[1751249345598,3.79808504,655.83,654.85,1.1190084]
[1751249345799,3.79808504,655.83,654.85,0.617]
[1751249346298,0.26558499,655.84,654.85,0.617]
[1751249350101,0.26558499,655.84,654.86,1.11875315]
[1751249350302,0.26558499,655.84,654.85,0.617]
[1751249350602,0.26558499,655.84,654.86,1.11875827]
[1751249350896,0.26558499,655.84,654.85,0.617]
[1751249351101,0.26558499,655.84,654.86,1.11874693]
[1751249351301,0.26558499,655.84,654.85,0.617]
[1751249351602,3.79808504,655.79,654.85,0.617]
[1751249352198,3.79808504,655.8,654.85,0.617]
[1751249352701,3.79808504,655.78,654.85,0.617]
[1751249353299,3.79808504,655.82,654.85,0.617]
[1751249354306,3.79808504,655.81,654.85,0.617]
[1751249355304,3.79808504,655.75,654.85,0.617]
[1751249355806,3.79808504,655.78,654.85,0.617]
[1751249356407,3.79808504,655.75,654.85,0.617]
[1751249356907,3.79808504,655.78,654.85,0.617]
[1751249358002,3.79808504,655.76,654.85,0.617]
[1751249358904,3.79808504,655.76,654.86,3.068]
[1751249359504,3.79808504,655.75,654.86,3.068]
[1751249360002,3.79808504,655.76,654.86,3.068]
[1751249360404,3.79808504,655.76,654.87,3.525]
[1751249360703,3.79808504,655.75,654.87,3.525]
[1751249361001,3.79808504,655.76,654.87,3.525]
[1751249361504,3.79808504,655.83,654.87,3.525]
[1751249362205,3.79808504,655.81,654.88,1.11951514]
[1751249362407,3.79808504,655.81,654.87,3.525]
[1751249362608,3.79808504,655.81,654.88,1.11951458]
[1751249362909,3.79808504,655.81,654.87,3.525]
[1751249363109,3.79808504,655.76,654.88,1.11951458]
[1751249363310,3.79808504,655.76,654.88,0.616]
[1751249364311,3.79808504,655.81,654.88,0.616]
[1751249364810,3.79808504,655.83,654.88,0.616]
[1751249365809,0.26558499,655.84,654.88,0.616]
[1751249366307,4.06367003,655.84,654.88,0.616]
[1751249366808,3.79808504,655.78,654.88,0.616]
[1751249367511,3.79808504,655.76,654.88,0.616]
[1751249367911,3.79808504,655.77,654.88,0.616]
[1751249368410,3.79808504,655.78,654.88,0.616]
[1751249369413,3.79808504,655.79,654.88,0.616]
[1751249371511,3.79808504,655.77,654.88,0.616]
[1751249372518,3.79808504,655.8,654.88,0.616]
[1751249374617,3.79808504,655.78,654.88,0.616]
[1751249375815,3.79808504,655.74,654.88,0.616]
[1751249376220,3.79808504,655.75,654.88,0.616]
[1751249376721,3.79808504,655.72,654.88,0.616]
[1751249377821,3.79808504,655.71,654.88,0.616]
[1751249378224,3.79808504,655.7,654.88,0.616]
[1751249379322,3.79808504,655.76,654.88,0.616]
[1751249382525,3.79808504,655.74,654.88,0.616]
[1751249383626,3.79808504,655.76,654.88,0.616]
[1751249386030,3.79808504,655.73,654.88,0.616]
[1751249386226,3.79808504,655.73,654.89,3.228]
[1751249387026,0.26558499,655.84,654.89,3.228]
[1751249388434,0.26558499,655.84,654.9,2.56]
[1751249389330,3.79808504,655.82,654.9,2.56]
[1751249389530,3.79808504,655.82,654.91,0.616]
[1751249390230,3.79808504,655.83,654.91,0.616]
[1751249391232,3.79808504,655.82,654.91,0.616]
[1751249393834,3.79808504,655.79,654.91,0.616]
[1751249394338,3.79808504,655.8,654.91,0.616]
[1751249396935,3.79808504,655.61,654.91,0.616]
[1751249397534,3.79808504,655.78,654.91,0.616]
[1751249399035,3.79808504,655.8,654.91,0.616]
[1751249400043,3.79808504,655.79,654.91,0.616]
[1751249401643,3.79808504,655.74,654.91,0.616]
[1751249404244,3.79808504,655.73,654.91,0.616]
[1751249404842,3.79808504,655.74,654.91,0.616]
[1751249406345,3.79808504,655.75,654.91,0.616]
[1751249407446,3.79808504,655.65,654.91,0.616]
[1751249408445,3.79808504,655.64,654.91,0.616]
[1751249408944,3.79808504,655.58,654.91,0.616]
[1751249410445,3.79808504,655.55,654.91,0.616]
[1751249411448,3.79808504,655.63,654.91,0.616]
[1751249412549,3.79808504,655.75,654.91,0.616]
[1751249412846,3.79808504,655.75,654.92,2.846]
[1751249413046,3.79808504,655.72,654.92,2.846]
[1751249413648,3.79808504,655.82,654.92,2.846]
[1751249414147,3.79808504,655.81,654.92,2.846]
[1751249414649,3.79808504,655.8,654.92,2.846]
[1751249415650,0.26558499,655.84,654.92,2.846]
[1751249422654,0.26558499,655.84,654.93,0.616]
[1751249423052,3.79808504,655.83,654.93,0.616]
[1751249424552,3.79808504,655.82,654.93,0.616]
[1751249425552,3.79808504,655.75,654.93,0.616]
[1751249426052,3.79808504,655.74,654.94,3.359]
[1751249427060,3.79808504,655.72,654.94,3.359]
[1751249428758,3.79808504,655.71,654.94,3.359]
[1751249429259,3.79808504,655.69,654.94,3.359]
[1751249429757,0.26558499,655.84,654.94,3.359]
[1751249430262,4.06367003,655.84,654.94,3.359]
[1751249430758,0.26558499,655.84,654.94,3.359]
[1751249431362,3.79808504,655.82,654.94,3.359]
[1751249432864,3.79808504,655.79,654.94,3.359]
[1751249434365,0.26558499,655.84,654.94,3.359]
[1751249434366,3.79808504,655.78,654.94,3.359]
[1751249434866,3.79808504,655.78,654.95,3.203]
[1751249437066,3.79808504,655.77,654.95,3.203]
[1751249439569,0.26558499,655.84,654.95,3.203]
[1751249439570,3.79808504,655.58,654.95,3.203]
[1751249441671,3.79808504,655.52,654.95,3.203]
[1751249442368,3.79808504,655.58,654.95,3.203]
[1751249443472,3.79808504,655.58,654.96,2.494]
[1751249444373,3.79808504,655.67,654.96,2.494]
[1751249445375,3.79808504,655.7,654.96,2.494]
[1751249446377,3.79808504,655.71,654.96,2.494]
[1751249450377,3.79808504,655.71,654.97,3.496]
[1751249451180,3.79808504,655.68,654.97,3.496]
[1751249451680,3.79808504,655.75,654.97,3.496]
[1751249452182,3.79808504,655.72,654.97,3.496]
[1751249453083,3.79808504,655.73,654.97,3.496]
[1751249453985,3.79808504,655.73,654.98,0.616]
[1751249454184,3.79808504,655.65,654.98,0.616]
[1751249455182,3.79808504,655.6,654.98,0.616]
[1751249460990,3.79808504,655.74,654.98,0.616]
[1751249461590,3.79808504,655.77,654.98,0.616]
[1751249462986,3.79808504,655.79,654.98,0.616]
[1751249465094,0.26558499,655.84,654.98,0.616]
[1751249469895,0.26558499,655.84,654.97,3.496]
[1751249472892,0.26558499,655.84,654.98,0.616]
[1751249476595,0.26558499,655.84,654.99,2.198]
[1751249482501,0.26558499,655.84,655.0,2.18]
[1751249485202,3.79808504,655.96,655.0,2.18]
[1751249485406,3.79808504,655.82,655.0,2.18]
[1751249485900,3.79808504,655.85,655.0,2.18]
[1751249486103,0.26562756,655.62,655.0,2.18]
[1751249488101,0.26562756,655.62,655.01,0.616]
[1751249496801,0.26562756,655.62,655.02,3.624]
[1751249503512,3.79808504,655.6,655.02,3.624]
[1751249504713,3.79808504,655.57,655.02,3.624]
[1751249505613,3.79808504,655.58,655.02,3.624]
[1751249506609,0.26562756,655.62,655.02,3.624]
[1751249512216,0.26562756,655.62,655.03,2.857]
[1751249515418,0.26562756,655.62,655.04,2.462]
[1751249516917,0.26562756,655.62,655.05,0.616]
[1751249541829,0.26562756,655.62,655.03,2.857]
[1751249542129,0.26562756,655.62,655.04,2.542]
[1751249544929,0.26562756,655.62,655.05,0.616]
[1751249558040,0.26562756,655.62,655.06,3.324]
[1751249571857,0.26562756,655.62,655.07,0.616]
[1751249572553,0.26562756,655.62,655.08,2.761]
[1751249582663,0.26562756,655.62,655.09,2.651]
[1751249595370,0.26562756,655.62,655.1,0.616]
[1751249602574,0.26562756,655.62,655.11,2.846]
[1751249603170,0.26562756,655.62,655.12,2.985]
[1751249614286,0.26562756,655.62,655.11,2.846]
[1751249618190,0.26562756,655.62,655.12,2.226]
[1751249622798,0.26562756,655.62,655.13,0.616]
[1751249635111,0.26562756,655.62,655.14,2.052]
[1751249645518,0.26562756,655.62,655.15,0.616]
[1751249650017,0.26562756,655.62,655.16,2.971]
[1751249654823,0.26562756,655.62,655.17,3.273]
[1751249665728,0.26562756,655.62,655.18,2.626]
[1751249673245,0.26562756,655.62,655.19,0.616]
[1751249678554,0.26562756,655.62,655.2,3.419]
[1751249685962,3.79808504,655.99,655.2,3.419]
[1751249686263,0.26554142,655.54,655.2,3.419]
[1751249686557,3.79808504,655.93,655.2,3.419]
[1751249686761,0.2655475,655.54,655.2,3.419]
[1751249686958,3.79808504,655.89,655.2,3.419]
[1751249688259,0.26555155,655.72,655.2,3.419]
[1751249696565,0.26555155,655.72,655.19,0.616]
[1751249697369,0.26555155,655.72,655.18,2.626]
[1751249699970,0.26555155,655.72,655.19,2.277]
[1751249700976,0.26555155,655.72,655.2,0.616]
[1751249704480,0.26555155,655.72,655.21,1.11791256]
[1751249704778,0.26555155,655.72,655.22,1.11791256]
[1751249704980,0.26555155,655.72,655.23,1.11791256]
[1751249705180,3.79808504,656.65,655.2,0.616]
[1751249705380,0.26541181,655.84,655.21,1.11704135]
[1751249705579,3.79808504,656.68,655.22,1.11704135]
[1751249705782,0.26541282,655.84,655.23,1.11704135]
[1751249705985,0.26541282,655.84,655.2,0.616]
[1751249706180,3.79808504,656.51,655.2,0.616]
[1751249706383,0.26540776,655.84,655.2,0.616]
[1751249706684,3.79808504,656.51,655.2,0.616]
[1751249706884,0.265428,655.84,655.2,0.616]
[1751249707080,3.79808504,656.51,655.2,0.616]
[1751249707381,0.265428,655.84,655.2,0.616]
[1751249707681,3.79808504,656.51,655.2,0.616]
[1751249707985,0.265428,655.84,655.2,0.616]
[1751249708182,3.79808504,656.52,655.2,0.616]
[1751249709286,0.26542699,656.2,655.2,0.616]
[1751249712986,0.26542699,656.2,655.19,2.277]
[1751249713786,3.79808504,656.17,655.19,2.277]
[1751249714987,3.79808504,656.18,655.19,2.277]
[1751249715992,3.79808504,656.17,655.19,2.277]
[1751249716491,0.26542699,656.2,655.19,2.277]
[1751249716892,0.26542699,656.2,655.2,0.616]
[1751249717192,0.26542699,656.2,655.21,1.11597489]
[1751249717393,0.26542699,656.2,655.22,1.11597489]
[1751249717592,0.26542699,656.2,655.2,0.616]
[1751249717593,0.26542699,656.2,655.23,1.11597489]
[1751249717794,0.26542699,656.2,655.24,1.11597489]
[1751249717992,0.26542699,656.2,655.25,1.11597489]
[1751249718196,0.26542699,656.2,655.26,1.11597489]
[1751249718494,0.26542699,656.2,655.27,1.11597489]
[1751249718696,0.26542699,656.2,655.28,1.11597489]
[1751249718890,0.26542699,656.2,655.29,1.11597489]
[1751249719094,0.26542699,656.2,655.3,1.11597489]
[1751249719291,0.26542699,656.2,655.31,1.11597489]
[1751249719490,0.26542699,656.2,655.32,1.11597489]
[1751249719693,0.26542699,656.2,655.33,1.11597489]
[1751249719892,0.26542699,656.2,655.34,1.11597489]
[1751249720096,0.26542699,656.2,655.2,0.616]
[1751249720294,0.26542699,656.2,655.21,1.11252893]
[1751249720495,0.26542699,656.2,655.22,1.11252893]
[1751249720694,0.26542699,656.2,655.23,1.11252893]
[1751249720898,0.26542699,656.2,655.24,1.11252893]
[1751249721095,0.26542699,656.2,655.25,1.11252893]
[1751249721298,0.26542699,656.2,655.26,1.11252893]
[1751249721598,0.26542699,656.2,655.27,1.11252893]
[1751249721895,0.26542699,656.2,655.28,1.11252893]
[1751249722098,0.26542699,656.2,655.29,1.11252893]
[1751249722297,0.26542699,656.2,655.3,1.11252893]
[1751249722494,0.26542699,656.2,655.31,1.11252893]
[1751249722695,0.26542699,656.2,655.32,1.11252893]
[1751249722893,0.26542699,656.2,655.33,1.11252893]
[1751249723098,0.26542699,656.2,655.34,1.11252893]
[1751249723393,0.26542699,656.2,655.35,1.11252893]
[1751249723598,0.26542699,656.2,655.36,1.11252893]
[1751249723793,0.26542699,656.2,655.37,1.11252893]
[1751249723996,0.26542699,656.2,655.38,1.11252893]
[1751249724192,0.26542699,656.2,655.39,1.11252893]
[1751249724395,0.26542699,656.2,655.4,1.11252893]
[1751249724598,0.26542699,656.2,655.2,0.616]
[1751249724896,0.26542699,656.2,655.21,1.11065172]
[1751249725200,0.26542699,656.2,655.22,1.11065172]
[1751249725403,0.26542699,656.2,655.23,1.11065172]
[1751249725601,0.26542699,656.2,655.24,1.11065172]
[1751249725802,0.26542699,656.2,655.25,1.11065172]
[1751249726002,0.26542699,656.2,655.26,1.11065172]
[1751249726202,0.26542699,656.2,655.27,1.11065172]
[1751249726400,0.26542699,656.2,655.2,0.616]
[1751249726401,0.26542699,656.2,655.28,1.11065172]
[1751249726601,0.26542699,656.2,655.29,1.11065172]
[1751249726804,0.26542699,656.2,655.3,1.11065172]
[1751249727100,0.26542699,656.2,655.31,1.11065172]
[1751249727300,0.26542699,656.2,655.32,1.11065172]
[1751249727502,0.26542699,656.2,655.33,1.11065172]
[1751249727799,0.26542699,656.2,655.34,1.11065172]
[1751249728002,0.26542699,656.2,655.35,1.11065172]
[1751249728303,0.26542699,656.2,655.36,1.11065172]
[1751249728504,0.26542699,656.2,655.37,1.11065172]
[1751249728701,0.26542699,656.2,655.38,1.11065172]
[1751249728900,0.26542699,656.2,655.39,1.11065172]
[1751249729104,0.26542699,656.2,655.4,1.11065172]
[1751249729301,0.26542699,656.2,655.41,1.11065172]
[1751249729602,0.26542699,656.2,655.42,1.11065172]
[1751249729805,0.26542699,656.2,655.34,3.158]
[1751249730008,0.26542699,656.2,655.35,1.10936302]
[1751249730208,0.26542699,656.2,655.36,1.10936302]
[1751249730504,0.26542699,656.2,655.37,1.10936302]
[1751249730707,0.26542699,656.2,655.38,1.10936302]
[1751249731007,0.26542699,656.2,655.39,1.10936302]
[1751249731209,0.26542699,656.2,655.4,1.10936302]
[1751249731411,0.26542699,656.2,655.41,1.10936302]
[1751249731609,0.26542699,656.2,655.42,1.10936302]
[1751249731809,0.26542699,656.2,655.43,1.10936302]
[1751249732010,0.26542699,656.2,655.34,3.158]
[1751249732204,0.26542699,656.2,655.35,1.10881698]
[1751249732409,0.26542699,656.2,655.36,1.10881698]
[1751249732606,0.26542699,656.2,655.37,1.10881698]
[1751249732810,0.26542699,656.2,655.38,1.10881698]
[1751249733010,0.26542699,656.2,655.39,1.10881698]
[1751249733210,0.26542699,656.2,655.4,1.10881698]
[1751249733413,0.26542699,656.2,655.41,1.10881698]
[1751249733609,0.26542699,656.2,655.42,1.10881698]
[1751249733808,0.26542699,656.2,655.43,1.10881698]
[1751249734113,0.26542699,656.2,655.44,1.10881698]
[1751249734309,0.26542699,656.2,655.34,3.158]
[1751249734612,0.26542699,656.2,655.35,1.10845162]
[1751249734813,0.26542699,656.2,655.36,1.10845162]
[1751249735008,0.26542699,656.2,655.37,1.10845162]
[1751249735210,0.26542699,656.2,655.38,1.10845162]
[1751249735413,0.26542699,656.2,655.39,1.10845162]
[1751249735613,0.26542699,656.2,655.4,1.10845162]
[1751249735813,0.26542699,656.2,655.41,1.10845162]
[1751249736012,0.26542699,656.2,655.42,1.10845162]
[1751249736213,0.26542699,656.2,655.43,1.10845162]
[1751249736410,0.26542699,656.2,655.44,1.10845162]
[1751249736614,0.26542699,656.2,655.34,3.158]
[1751249736814,0.26542699,656.2,655.35,1.10758751]
[1751249737113,0.26542699,656.2,655.36,1.10758751]
[1751249737314,0.26542699,656.2,655.37,1.10758751]
[1751249737515,0.26542699,656.2,655.38,1.10758751]
[1751249737717,0.26542699,656.2,655.39,1.10758751]
[1751249737918,0.26542699,656.2,655.4,1.10758751]
[1751249738213,0.26542699,656.2,655.41,1.10758751]
[1751249738412,0.26542699,656.2,655.42,1.10758751]
[1751249738616,0.26542699,656.2,655.43,1.10758751]
[1751249738817,0.26542699,656.2,655.44,1.10758751]
[1751249739018,0.26542699,656.2,655.45,1.10758751]
[1751249739218,0.26542699,656.2,655.34,3.158]
[1751249739414,0.26542699,656.2,655.35,1.10737118]
[1751249739614,0.26542699,656.2,655.36,1.10737118]
[1751249739814,0.26542699,656.2,655.37,1.10737118]
[1751249740016,0.26542699,656.2,655.38,1.10737118]
[1751249740215,0.26542699,656.2,655.34,3.158]
[1751249740216,0.26542699,656.2,655.39,1.10737118]
[1751249740413,0.26542699,656.2,655.4,1.10737118]
[1751249740617,0.26542699,656.2,655.41,1.10737118]
[1751249740818,0.26542699,656.2,655.42,1.10737118]
[1751249741018,0.26542699,656.2,655.43,1.10737118]
[1751249741316,0.26542699,656.2,655.44,1.10737118]
[1751249741514,0.26542699,656.2,655.45,1.10737118]
[1751249741718,0.26542699,656.2,655.34,3.158]
[1751249741915,0.26542699,656.2,655.35,1.10730378]
[1751249742118,0.26542699,656.2,655.36,1.10730378]
[1751249742316,0.26542699,656.2,655.37,1.10730378]
[1751249742520,0.26542699,656.2,655.38,1.10730378]
[1751249742719,0.26542699,656.2,655.39,1.10730378]
[1751249742918,0.26542699,656.2,655.4,1.10730378]
[1751249743117,0.26542699,656.2,655.41,1.10730378]
[1751249743417,0.26542699,656.2,655.42,1.10730378]
[1751249743719,0.26542699,656.2,655.43,1.10730378]
[1751249743923,0.26542699,656.2,655.44,1.10730378]
[1751249744121,0.26542699,656.2,655.45,1.10730378]
[1751249744318,0.26542699,656.2,655.46,1.10730378]
[1751249744516,0.26542699,656.2,655.34,3.158]
[1751249744720,0.26542699,656.2,655.35,1.10728433]
[1751249744920,0.26542699,656.2,655.36,1.10728433]
[1751249745121,0.26542699,656.2,655.37,1.10728433]
[1751249745416,0.26542699,656.2,655.38,1.10728433]
[1751249745618,0.26542699,656.2,655.39,1.10728433]
[1751249745822,0.26542699,656.2,655.4,1.10728433]
[1751249746023,0.26542699,656.2,655.41,1.10728433]
[1751249746318,0.26542699,656.2,655.42,1.10728433]
[1751249746519,0.26542699,656.2,655.43,1.10728433]
[1751249746722,0.26542699,656.2,655.44,1.10728433]
[1751249747018,0.26542699,656.2,655.45,1.10728433]
[1751249747220,0.26542699,656.2,655.46,1.10728433]
[1751249747521,0.26542699,656.2,655.34,3.158]
[1751249747719,0.26542699,656.2,655.35,1.10737584]
[1751249747922,0.26542699,656.2,655.36,1.10737584]
[1751249748121,0.26542699,656.2,655.37,1.10737584]
[1751249748325,0.26542699,656.2,655.34,3.158]
[1751249748326,0.26542699,656.2,655.38,1.10737584]
[1751249748521,0.26542699,656.2,655.39,1.10737584]
[1751249748821,0.26542699,656.2,655.4,1.10737584]
[1751249749024,0.26542699,656.2,655.41,1.10737584]
[1751249749327,0.26542699,656.2,655.42,1.10737584]
[1751249749521,0.26542699,656.2,655.43,1.10737584]
[1751249749724,0.26542699,656.2,655.44,1.10737584]
[1751249750024,0.26542699,656.2,655.45,1.10737584]
[1751249750224,0.26542699,656.2,655.39,0.615]
[1751249750525,0.26542699,656.2,655.4,1.1075715]
[1751249750821,0.26542699,656.2,655.39,0.615]
[1751249750822,0.26542699,656.2,655.41,1.1075715]
[1751249751022,0.26542699,656.2,655.42,1.1075715]
[1751249751225,0.26542699,656.2,655.43,1.1075715]
[1751249751520,0.26542699,656.2,655.39,0.615]
[1751249751521,0.26542699,656.2,655.44,1.1075715]
[1751249751722,0.26542699,656.2,655.39,0.615]
[1751249751922,0.26542699,656.2,655.4,1.10767337]
[1751249752122,0.26542699,656.2,655.41,1.10767337]
[1751249752323,0.26542699,656.2,655.39,0.615]
[1751249752523,0.26542699,656.2,655.4,1.10779058]
[1751249752722,0.26542699,656.2,655.41,1.10779058]
[1751249752923,0.26542699,656.2,655.39,0.615]
[1751249753122,0.26542699,656.2,655.4,1.10779058]
[1751249753325,0.26542699,656.2,655.41,1.10779058]
[1751249753525,0.26542699,656.2,655.39,0.615]
[1751249753825,0.26542699,656.2,655.4,1.10792369]
[1751249754026,0.26542699,656.2,655.41,1.10792369]
[1751249754326,0.26542699,656.2,655.39,0.615]
[1751249754623,0.26542699,656.2,655.4,1.10807336]
[1751249754926,0.26542699,656.2,655.41,1.10807336]
[1751249755126,0.26542699,656.2,655.39,0.615]
[1751249755328,0.26542699,656.2,655.4,1.10824043]
[1751249755628,0.26542699,656.2,655.41,4.19724043]
[1751249755928,0.26542699,656.2,655.41,3.089]
[1751249759731,0.26542699,656.2,655.42,2.044]
[1751249761832,0.26542699,656.2,655.43,1.10938291]
[1751249762028,0.26542699,656.2,655.42,2.044]
[1751249764635,0.26542699,656.2,655.43,0.615]
[1751249773342,0.26542699,656.2,655.44,2.515]
[1751249781544,4.06351203,656.2,655.44,2.515]
[1751249782045,4.06351203,656.2,655.45,2.521]
[1751249782346,3.79808504,656.08,655.45,2.521]
[1751249782645,0.26542699,656.2,655.45,2.521]
[1751249782646,3.79808504,656.09,655.45,2.521]
[1751249783254,3.79808504,656.1,655.45,2.521]
[1751249783844,3.79808504,656.11,655.45,2.521]
[1751249784149,3.79808504,656.11,655.46,0.615]
[1751249784749,3.79808504,656.13,655.46,0.615]
[1751249785755,3.79808504,656.14,655.46,0.615]
[1751249786854,3.79808504,656.15,655.46,0.615]
[1751249787355,0.26542699,656.2,655.46,0.615]
[1751249787656,0.26542699,656.2,655.47,3.244]
[1751249792063,3.79808504,656.16,655.47,3.244]
[1751249792660,3.79808504,656.17,655.47,3.244]